[Event "13th KIIT Festival-A 2022"]
[Site "Bhubaneswar"]
[Date "2022.05.23"]
[Round "2.9"]
[White "Rahman, Ziaur"]
[Black "Soni, Krishan"]
[Result "1-0"]
[ECO "A06"]
[WhiteElo "2431"]
[BlackElo "1904"]
[Annotator "TA"]
[PlyCount "109"]
[EventDate "2022.05.15"]
[EventType "swiss"]
[EventCountry "IND"]
[SourceTitle "playchess.com"]
[Source "ChessBase"]
[SourceQuality "1"]
[TimeControl "5400+30"]

{[%evp 12,109,16,0,0,0,0,3,13,0,29,28,107,97,86,86,132,132,118,25,127,127,121,105,87,23,30,25,36,30,44,32,50,33,81,3,81,45,45,0,0,0,0,0,0,0,0,-12,0,0,80,72,83,56,67,68,83,94,354,364,363,347,477,473,532,529,508,494,510,514,592,592,663,566,737,736,807,790,723,704,1100,1100,1100,1088,1057,1094,1145,909,1690,1504,1198,593,702,717,29980,29979,29984,29984,29984,29985]} 1. b3 {[%emt 0:00:18]} d5 {[%emt 0:00:59]} 2. Bb2 {[%emt 0:00:11]} Nf6 {[%emt 0:02:15]} 3. Nf3 {[%emt 0:00:48]} c5 {[%emt 0:02:51]} 4. e3 {[%emt 0:00:24]} Nc6 {[%emt 0:00:16]} 5. Bb5 {[%emt 0:00:20]} Bd7 {[%emt 0:00:20]} 6. O-O {[%emt 0:00:39]} e6 {[%emt 0:00:50]} 7. Bxc6 {[%emt 0:00:58]} Bxc6 {[%emt 0:00:04] A06: Réti Opening: 1 Nf3 d5.} 8. Ne5 {[%emt 0:00:06]} Rc8 {[%emt 0:00:32]} 9. d3 {[%emt 0:00:25]} Bd6 {[%emt 0:00:30] The position is equal.} 10. Nd2 {[%emt 0:01:24] [#]} Qc7 $146 {[%emt 0:01:01]} ({Predecessor:} 10... O-O 11. f4 Nd7 12. Qg4 g6 13. Ndf3 Qe7 14. Ng5 f5 15. Qg3 Nxe5 16. Bxe5 Bxe5 17. fxe5 {1-0 (37) Nakamura,H (2736)-Grigoriants,S (2542) Chess.com INT 2020}) 11. f4 {[%emt 0:02:25]} b5 {[%emt 0:05:17]} (11... Be7 $11) 12. Nxc6 $16 {[%emt 0:06:42] White is more active.} Qxc6 {[%emt 0:00:06]} 13. a4 {[%emt 0:00:15]} b4 {[%emt 0:06:46]} (13... a6 $142) 14. Bxf6 {[%emt 0:05:33]} gxf6 {[%emt 0:00:09]} 15. e4 {[%emt 0:00:46]} (15. Qh5 $16) 15... Kd7 {[%emt 0:05:52]} (15... h5 $11 {keeps the balance.}) 16. Qh5 {[%emt 0:02:42]} Rcf8 {[%emt 0:01:19]} 17. exd5 {[%emt 0:03:16]} Qxd5 {[%emt 0:01:42]} 18. Qxd5 {[%emt 0:08:49]} (18. f5 $1 $16) 18... exd5 $11 {[%emt 0:00:03]} 19. g3 {[%emt 0:00:48]} Rfg8 {[%emt 0:04:10]} 20. Kh1 {[%emt 0:02:54]} h5 {[%emt 0:01:03] And now ...h4 would win.} 21. Nf3 {[%emt 0:00:29]} Re8 {[%emt 0:14:40]} 22. Rf2 {[%emt 0:00:23]} Re3 {[%emt 0:03:15]} (22... f5 $14) 23. Kg2 {[%emt 0:00:47]} ({White should try} 23. Nh4 $16) 23... Rhe8 {[%emt 0:01:03]} (23... f5 $11 {remains equal.}) 24. Rd1 {[%emt 0:01:47]} f5 {[%emt 0:10:24]} 25. d4 {[%emt 0:05:02]} ({White should play} 25. Rdd2 $14) 25... c4 $1 {[%emt 0:01:03]} 26. Ne5+ {[%emt 0:04:25]} Bxe5 {[%emt 0:03:39]} 27. dxe5 {[%emt 0:00:32][%mdl 4096] Endgame KRR-KRR} Kc6 {[%emt 0:01:35]} 28. bxc4 {[%emt 0:02:58]} dxc4 {[%emt 0:00:03]} 29. Rfd2 {[%emt 0:05:06]} Rc8 {[%emt 0:08:30]} 30. Kh3 {[%emt 0:02:47]} Rc3 {[%emt 0:06:18]} (30... Ra3 $11) 31. Kh4 $1 $16 {[%emt 0:01:27]} b3 {[%emt 0:01:32] [#]} 32. cxb3 {[%emt 0:00:43]} cxb3 {[%emt 0:00:03]} 33. Kg5 {[%emt 0:01:47]} (33. Kxh5 $5 {[%cal Rh5g5]} Rg8 34. Rd6+ Kc5 35. Rd7 $11) 33... Kc5 {[%emt 0:01:13] [#]} 34. Rd7 $1 {[%emt 0:01:06]} (34. Kxf5 $6 Kb4 $11) 34... a5 $2 {[%emt 0:07:42][%mdl 8192] Black cannot hold the game after this.} (34... Kb4 $16 {keeps fighting.}) 35. Rb7 $18 {[%emt 0:02:14]} ({Stronger than} 35. Kxf5 Kb4 $14) (35. Rxf7 h4 $18) 35... Kc4 {[%emt 0:00:24]} 36. Kxf5 {[%emt 0:00:51]} ({Inferior is} 36. Rxf7 b2 37. Rb1 (37. Kxf5 Rc1 $17) 37... Rb8 $11) 36... Rc6 {[%emt 0:02:57]} 37. Ke4 {[%emt 0:04:54] White threatens Rd4+ and mate.} Rc2 {[%emt 0:04:39]} 38. Rd4+ {[%emt 0:00:42]} Kc3 {[%emt 0:00:22]} 39. Rd3+ {[%emt 0:00:10]} Kc4 {[%emt 0:00:01]} 40. Rbxb3 {[%emt 0:02:52]} Re2+ {[%emt 0:01:44]} 41. Kf5 {[%emt 0:01:26]} Rc2 {[%emt 0:00:10] Against Rdc3+} 42. Rf3 {[%emt 0:01:24]} Rc7 {[%emt 0:01:05]} 43. Kf6 {[%emt 0:01:36]} Ra7 {[%emt 0:00:02]} 44. f5 {[%emt 0:02:04][%cal Bf4f5,Bf5e6][%mdl 32]} Rxh2 {[%emt 0:00:18]} 45. Rb5 {[%emt 0:01:32]} Ra2 {[%emt 0:01:30]} 46. Rf4+ {[%emt 0:00:10]} Kc3 {[%emt 0:00:05]} 47. e6 {[%emt 0:01:11]} fxe6 {[%emt 0:00:02]} 48. fxe6 {[%emt 0:00:06]} Re2 {[%emt 0:01:25]} 49. Rxh5 {[%emt 0:01:00]} Ra8 {[%emt 0:00:23]} 50. Rc5+ {[%emt 0:01:40]} Kb3 {[%emt 0:00:16]} 51. Rd5 {[%emt 0:03:12]} (51. Re5 $142 Rf8+ 52. Ke7 Rxe5 53. Rxf8 Kxa4 54. Kf6) 51... Rf8+ {[%emt 0:00:28]} 52. Ke7 {[%emt 0:00:08]} Rxf4 {[%emt 0:01:00]} 53. gxf4 {[%emt 0:00:05] White mates.} Kxa4 {[%emt 0:00:10]} 54. Kd7 {[%emt 0:00:51]} Kb4 {[%emt 0:00:24]} 55. e7 {[%emt 0:00:06] Weighted Error Value: White=0.16 (very precise) /Black=0.55} 1-0

[Event "13th KIIT Festival-A 2022"]
[Site "Bhubaneswar"]
[Date "2022.05.23"]
[Round "2.10"]
[White "Ayush Jha"]
[Black "Laxman, R.R."]
[Result "0-1"]
[ECO "A46"]
[WhiteElo "1900"]
[BlackElo "2420"]
[Annotator "TA"]
[PlyCount "108"]
[EventDate "2022.05.15"]
[EventType "swiss"]
[EventCountry "IND"]
[SourceTitle "playchess.com"]
[Source "ChessBase"]
[SourceQuality "1"]
[TimeControl "5400+30"]

{[%evp 12,108,-11,-14,-2,-15,-8,-9,28,-77,-26,-63,-67,-60,-43,-58,-44,-45,-51,-49,-37,-77,-66,-95,-59,-70,-38,-47,-34,-68,-91,-237,-224,-231,-237,-236,-237,-260,-232,-252,-269,-256,-160,-162,-149,-249,-248,-387,-387,-377,-387,-385,-382,-339,-279,-275,-273,-525,-464,-556,-562,-695,-686,-1614,-700,-1666,-1534,-1242,-695,-679,-675,-640,-565,-488,-450,-642,-580,-1529,-1489,-2591,-2230,-1892,-1789,-1439,-1104,-1548,-869,-29971,-29972,-29972,-29973,-29969,-29974,-29982,-29983,-29983,-29984,-29994,-29995]} 1. d4 {[%emt 0:00:04]} Nf6 {[%emt 0:00:06]} 2. Nf3 {[%emt 0:00:05]} e6 {[%emt 0:00:18]} 3. g3 {[%emt 0:00:13]} b5 {[%emt 0:00:08]} 4. Bg2 {[%emt 0:00:07]} Bb7 {[%emt 0:00:33]} 5. O-O {[%emt 0:00:11]} c5 {[%emt 0:00:09]} 6. a4 {[%emt 0:03:07]} b4 {[%emt 0:00:11]} 7. c4 {[%emt 0:01:08][%cal Oe2e4]} cxd4 {[%emt 0:03:00] A46: 1 d4 Nf6 2 Nf3 e6: Torre, London and Colle Systems.} 8. Nxd4 {[%emt 0:03:31] 8.Qxd4 injects fresh life into this line.} Bxg2 {[%emt 0:00:07]} 9. Kxg2 {[%emt 0:00:05]} d5 {[%emt 0:02:16] The position is equal.} 10. b3 {[%emt 0:01:24] [#]} (10. Nb3 $11 {keeps the balance.}) 10... Bc5 $146 {[%emt 0:01:17]} ({Better is} 10... dxc4 $1 $17 {...c3 is the strong threat.} 11. bxc4 Be7) ({Predecessor:} 10... dxc4 11. bxc4 Nbd7 12. Bb2 Qc7 13. Nd2 Nc5 14. N2f3 Be7 15. Nb5 Qc6 16. Kg1 Rd8 {0-1 (47) Lodhi,M (2330)-Ghaem Maghami,E (2591) Teheran 2014}) 11. Bb2 {[%emt 0:00:29]} dxc4 {[%emt 0:09:18]} 12. bxc4 {[%emt 0:00:08]} Bxd4 {[%emt 0:01:24]} 13. Bxd4 {[%emt 0:03:29]} Nc6 {[%emt 0:00:21]} (13... Qc7 {looks sharper.} 14. Nd2 e5 15. Be3 O-O) 14. Bb2 {[%emt 0:01:50]} O-O {[%emt 0:04:24][%cal Bh8f8,Bf8d8,Bd8d5][%mdl 32]} 15. Nd2 {[%emt 0:02:02]} Qe7 {[%emt 0:05:32]} 16. e3 {[%emt 0:11:21]} Rfd8 {[%emt 0:01:36] aiming for ...Ne4.} 17. Qe2 {[%emt 0:00:54][%cal Oc4c5]} e5 {[%emt 0:07:41]} 18. Rfd1 {[%emt 0:05:52]} Qe6 {[%emt 0:01:24] Black is more active.} 19. c5 {[%emt 0:05:12]} Rd5 {[%emt 0:02:49]} 20. Rac1 {[%emt 0:02:25]} Rad8 {[%emt 0:00:20] Strongly threatening ...Qd7.} 21. Nf3 {[%emt 0:01:20] White does not recover from this.} (21. e4 $17 {was the only chance.} Rd3 22. Nf3 Rxd1 23. Rxd1 Rxd1 24. Qxd1) 21... Ne4 $19 {[%emt 0:01:40]} 22. Qc2 {[%emt 0:07:49]} Rxd1 {[%emt 0:02:59]} 23. Rxd1 {[%emt 0:00:08]} Rxd1 {[%emt 0:00:02]} 24. Qxd1 {[%emt 0:00:08][%cal Of3e5]} f6 {[%emt 0:00:09]} (24... Nxc5 25. Nxe5 h6 26. Nf3 $17) 25. Qd3 {[%emt 0:03:53]} Nxc5 {[%emt 0:00:43]} 26. Qb5 {[%emt 0:00:19]} Qd5 {[%emt 0:03:55]} 27. e4 {[%emt 0:01:10]} Qd6 {[%emt 0:00:02]} (27... Qxe4 28. Qxc5 h6 29. h4 $14) 28. Nd2 {[%emt 0:02:29]} (28. Bc1 $17) 28... a6 {[%emt 0:02:16]} (28... Qxd2 29. Qxc6 Nd7 30. a5 $17) 29. Qb6 {[%emt 0:04:31]} (29. Qc4+ $142 Kf8 30. Nf3) 29... Nxa4 {[%emt 0:01:02]} ({Weaker is} 29... Qxd2 30. Qxc6 Nd7 31. Qxa6 $11) 30. Qxa6 {[%emt 0:00:07]} Nxb2 {[%emt 0:00:13] Pair of Knights!} (30... Qxd2 31. Qxc6 h6 32. Qe6+ Kh7 33. Qf5+ g6 34. Qxf6 Nxb2 35. Qf7+ Kh8 36. Qf8+ Kh7 37. Qf7+ Kh8 38. Qf8+ Kh7 39. Qf7+ $11) 31. Qa2+ {[%emt 0:00:05]} Kh8 {[%emt 0:01:29]} 32. Qxb2 {[%emt 0:00:13][%mdl 4096] Endgame KQN-KQN} h6 {[%emt 0:00:09]} 33. Qa2 {[%emt 0:05:00]} Nd4 {[%emt 0:01:13] Threatens to win with ...Kh7.} 34. Qf7 $2 {[%emt 0:05:35]} (34. Qa4) 34... Qb8 {[%emt 0:00:23]} 35. h4 {[%emt 0:03:12]} b3 {[%emt 0:05:35]} 36. h5 {[%emt 0:00:13]} b2 {[%emt 0:02:54]} 37. f3 {[%emt 0:08:07]} Qa8 {[%emt 0:02:29]} (37... Qc8 $142 38. Nb1 Ne6) 38. Kf2 {[%emt 0:04:15]} Qc8 {[%emt 0:01:48]} 39. Kg2 {[%emt 0:00:33]} f5 {[%emt 0:02:00]} ({And not} 39... Qc2 40. Qe8+ Kh7 41. Qg6+ Kh8 42. Qe8+ Kh7 43. Qg6+ Kh8 44. Qe8+ $11) 40. exf5 {[%emt 0:07:16]} Qxf5 {[%emt 0:01:58]} ({Not} 40... Qc2 41. Qe8+ Kh7 42. Qg6+ Kh8 43. Qe8+ Kh7 44. Qg6+ Kh8 45. Qe8+ $11) 41. Qxf5 {[%emt 0:00:52]} Nxf5 {[%emt 0:00:02] KN-KN} 42. Kf2 {[%emt 0:00:23]} Nd6 {[%emt 0:00:09]} 43. Nb1 {[%emt 0:00:17]} (43. g4 $142 Nb5 44. Nb1) 43... Kg8 {[%emt 0:00:37] Hoping for ...e4.} 44. Ke2 {[%emt 0:00:48]} e4 {[%emt 0:01:10]} 45. fxe4 {[%emt 0:01:45]} Nxe4 {[%emt 0:00:02]} 46. Kf3 {[%emt 0:00:24]} Nf6 {[%emt 0:00:16]} 47. g4 {[%emt 0:00:06]} Kf7 {[%emt 0:00:05]} 48. Kf4 {[%emt 0:03:18]} Ke6 {[%emt 0:00:05]} 49. g5 {[%emt 0:00:09]} Nxh5+ {[%emt 0:01:07] Black mates.} 50. Kg4 {[%emt 0:00:07] [#]} hxg5 $1 {[%emt 0:00:09]} 51. Kxg5 {[%emt 0:00:44]} Nf6 {[%emt 0:00:03]} 52. Na3 {[%emt 0:02:48]} Kd5 {[%emt 0:00:32]} 53. Kg6 {[%emt 0:00:19]} Ne8 {[%emt 0:00:10]} 54. Nb5 {[%emt 0:00:24]} b1=Q+ {[%emt 0:00:08] Weighted Error Value: White=0.94/Black=0.27 (precise)} 0-1

[Event "13th KIIT Festival-A 2022"]
[Site "Bhubaneswar"]
[Date "2022.05.23"]
[Round "2.11"]
[White "Azaladze, Shota"]
[Black "Mahendra Teja Mekala"]
[Result "1-0"]
[ECO "A09"]
[WhiteElo "2420"]
[BlackElo "1871"]
[Annotator "TA"]
[PlyCount "113"]
[EventDate "2022.05.15"]
[EventType "swiss"]
[EventCountry "IND"]
[SourceTitle "playchess.com"]
[Source "ChessBase"]
[SourceQuality "1"]
[TimeControl "5400+30"]

{[%evp 15,113,0,6,-15,-3,0,0,0,0,0,0,0,0,0,-15,0,0,0,0,0,61,60,108,59,62,78,131,0,0,-35,-37,-54,-58,-162,-49,-50,0,0,0,-115,0,0,0,0,0,0,0,0,0,0,0,0,0,0,0,-222,151,149,154,158,165,159,157,120,151,151,151,151,166,145,145,151,139,137,145,135,236,226,263,263,558,548,575,575,579,570,527,497,12833,12833,5943,5872,12837,12836,12837,12837,12837,12835,2721,1472]} 1. Nf3 {[%emt 0:00:31]} Nf6 {[%emt 0:00:19]} 2. g3 {[%emt 0:00:00]} d5 {[%emt 0:00:53]} 3. Bg2 {[%emt 0:00:00]} c5 {[%emt 0:01:33]} 4. O-O {[%emt 0:00:00]} g6 {[%emt 0:00:26]} 5. c4 {[%emt 0:01:33]} d4 {[%emt 0:01:48]} 6. e3 {[%emt 0:02:15]} Nc6 {[%emt 0:07:29]} 7. exd4 {[%emt 0:00:11]} cxd4 {[%emt 0:00:31]} 8. d3 {[%emt 0:01:27]} Bg7 {[%emt 0:00:45]} 9. Na3 {[%emt 0:03:06] A09: Réti Opening: 1 Nf3 d5 2 c4.} O-O {[%emt 0:00:41]} 10. Re1 {[%emt 0:00:09]} Nd7 {[%emt 0:13:16][%cal Bf6d7,Bd7c5,Bc5d3][%mdl 32]} 11. Nc2 {[%emt 0:00:59] The position is equal.} Nc5 {[%emt 1:08:19]} 12. b4 {[%emt 0:03:04]} Nxd3 {[%emt 0:00:00]} 13. Qxd3 {[%emt 0:01:05]} Bf5 {[%emt 0:00:00] [#]} 14. Qd2 $146 {[%emt 0:00:51]} ({Predecessor:} 14. Qb3 d3 15. Bb2 Bxb2 16. Qxb2 dxc2 17. Ne5 Qd4 18. Qxd4 Nxd4 19. c5 Rab8 20. Bd5 {0-1 (30) Belezky,A (2375)-Baburin,A (2600) Andorra 1998}) 14... d3 {[%emt 0:00:00][%mdl 64] Discovered Attack} 15. Ne3 {[%emt 0:00:11]} Bxa1 {[%emt 0:00:00]} 16. Nxf5 {[%emt 0:00:11]} gxf5 {[%emt 0:00:00]} 17. b5 {[%emt 0:03:16]} Nd4 {[%emt 0:00:00]} (17... Na5 $11 18. Qg5+ Bg7) 18. Qxd3 $14 {[%emt 0:04:24]} Rc8 {[%emt 0:00:29]} (18... Nxf3+ $14 19. Qxf3 Qa5) 19. Bg5 {[%emt 0:04:36]} (19. Ba3 $1 $16 Nxf3+ 20. Qxf3) 19... Nxf3+ $1 {[%emt 0:01:50]} 20. Qxf3 {[%emt 0:00:03]} Bg7 {[%emt 0:01:14]} (20... Qd4 $142) 21. Qxf5 {[%emt 0:02:34] White is more active.} ({Reject} 21. Qxb7 $6 Rxc4 22. Qxa7 (22. Qxe7 Qb6 $11) 22... Bc3 $14) (21. Bxe7 $16 Re8 22. Bxd8 (22. Qxf5 Qd2 $16) 22... Rxe1+ 23. Bf1 Rxd8 24. Kg2 (24. Qxb7 Rdd1 $11)) 21... e6 $11 {[%emt 0:00:45]} 22. Qg4 {[%emt 0:03:17]} (22. Qf4 $5 {[%cal Rg5d8]} Qd4 23. Rc1 $15) 22... Qd4 {[%emt 0:00:13]} 23. Qh3 {[%emt 0:06:37]} Rxc4 {[%emt 0:00:40]} 24. Bxb7 {[%emt 0:01:50]} ({White should play} 24. Be4 $15 f5 25. Bxb7) 24... Rc2 {[%emt 0:00:40]} (24... Qc5 $19 25. Be3 Qxb5) 25. Be3 $15 {[%emt 0:00:12]} Qb4 {[%emt 0:00:18]} (25... Qa4 $15) 26. Rd1 $11 {[%emt 0:02:12]} Rxa2 {[%emt 0:00:24]} 27. Bc6 {[%emt 0:00:52]} (27. Qh5 $11) 27... Ra1 {[%emt 0:00:39]} (27... Qa4 $17 28. Qh5 a6) 28. Rxa1 {[%emt 0:00:24]} Bxa1 {[%emt 0:00:08]} 29. Bxa7 {[%emt 0:00:34] This bishop pair is nice.} Rd8 {[%emt 0:00:46] Threatens to win with ...Rd1+.} 30. Qh5 {[%emt 0:01:36] Prevents Rd1+.} Qe1+ {[%emt 0:00:43]} 31. Kg2 {[%emt 0:00:03] Black must now prevent Qg5+.} Rd1 {[%emt 0:00:26]} 32. Kh3 $40 {[%emt 0:02:46][%mdl 128] Strongly threatening Be3. White attacks. The board is on fire.} Qf1+ {[%emt 0:00:36]} 33. Bg2 {[%emt 0:00:16]} Qd3 {[%emt 0:00:08][%cal Od3g6]} 34. b6 {[%emt 0:11:24]} Bd4 {[%emt 0:00:47][%cal Od3g6] Hoping for ...Qg6!} 35. Qg4+ {[%emt 0:08:13]} (35. Be4 $11 Qf1+ 36. Bg2) 35... Kf8 $2 {[%emt 0:00:37] [#]} (35... Qg6 $1 $19 {[%cal Od4f2]} 36. f4 (36. Qxd1 {gets mated.} Qh6+ 37. Kg4 f5+ 38. Kf3 Qh5+ 39. Kf4 e5#) 36... Rb1) 36. Bb8 $1 $16 {[%emt 0:00:34] Intending Bd6+ and mate.} Bxb6 {[%emt 0:00:35]} 37. Qb4+ {[%emt 0:00:09]} Kg8 {[%emt 0:00:10] And now ...Qf5+ would win.} 38. Qxb6 {[%emt 0:00:13]} Rb1 {[%emt 0:00:25]} 39. Qd6 {[%emt 0:01:42]} Qf5+ {[%emt 0:00:13]} 40. g4 {[%emt 0:00:05]} Rb3+ {[%emt 0:00:05]} 41. f3 {[%emt 0:00:06]} Qf6 {[%emt 0:00:38]} 42. Qf4 {[%emt 0:01:08]} Qxf4 {[%emt 0:00:31]} 43. Bxf4 {[%emt 0:00:03]} f6 {[%emt 0:00:13] Prevents Be5.} 44. Kg3 {[%emt 0:00:18]} e5 {[%emt 0:00:25]} 45. Bh6 {[%emt 0:00:44]} e4 {[%emt 0:00:20] [#]} (45... Kf7 $16 {keeps fighting.} 46. h4 Kg6) 46. h4 $1 $18 {[%emt 0:00:54][%cal Bh2h4,Bh4h5][%mdl 32]} Kf7 {[%emt 0:00:40]} 47. h5 {[%emt 0:01:01]} e3 $2 {[%emt 0:01:49]} (47... Rc3 48. Kf4 Rc2) 48. Bf1 {[%emt 0:00:08] Bc4+ is the strong threat. White is clearly winning.} Rc3 {[%emt 0:00:23] Prevents Bc4+.} 49. Kf4 {[%emt 0:00:26]} Ke6 {[%emt 0:00:37]} 50. Ke4 {[%emt 0:00:13]} Rc1 {[%emt 0:00:30]} 51. Be2 {[%emt 0:00:11]} f5+ {[%emt 0:00:30]} (51... Kf7 $142 52. Bxe3 Rc8) 52. gxf5+ {[%emt 0:00:07]} Kf6 {[%emt 0:00:07]} 53. Bxe3 {[%emt 0:00:23]} Re1 {[%emt 0:00:22]} 54. Bd4+ {[%emt 0:00:07]} Ke7 {[%emt 0:00:43]} 55. Ke3 {[%emt 0:00:11]} Rc1 {[%emt 0:00:16]} 56. Bd3 {[%emt 0:00:19]} Kf7 {[%emt 0:00:15]} 57. h6 {[%emt 0:00:04] Weighted Error Value: White=0.26 (precise) /Black=0.36} 1-0

[Event "13th KIIT Festival-A 2022"]
[Site "Bhubaneswar"]
[Date "2022.05.23"]
[Round "2.12"]
[White "Baghirova, Khatun"]
[Black "Nitin, S.."]
[Result "0-1"]
[ECO "B90"]
[WhiteElo "1866"]
[BlackElo "2399"]
[Annotator "TA"]
[PlyCount "54"]
[EventDate "2022.05.15"]
[EventType "swiss"]
[EventCountry "IND"]
[SourceTitle "playchess.com"]
[Source "ChessBase"]
[SourceQuality "1"]
[TimeControl "5400+30"]

{[%evp 14,54,0,0,0,0,9,-29,0,0,0,0,0,-64,-50,-200,-200,-202,-199,-187,-222,-254,-253,-254,-247,-368,-372,-365,-365,-379,-371,-360,-360,-557,-529,-768,-750,-869,-863,-851,-816,-1114,-1093]} 1. e4 {[%emt 0:02:02]} c5 {[%emt 0:00:36]} 2. Nf3 {[%emt 0:00:04]} d6 {[%emt 0:00:26]} 3. d4 {[%emt 0:00:19]} cxd4 {[%emt 0:00:10]} 4. Nxd4 {[%emt 0:00:04]} Nf6 {[%emt 0:00:09]} 5. Nc3 {[%emt 0:00:35]} a6 {[%emt 0:00:10]} 6. a4 {[%emt 0:00:06]} e5 {[%emt 0:00:41]} 7. Nb3 {[%emt 0:00:17]} Be6 {[%emt 0:00:12] 7...Be7 is the hot move.} 8. Be2 {[%emt 0:00:33]} Nc6 {[%emt 0:00:21] B90: Sicilian Najdorf: Unusual White 6th moves, 6 Be3 Ng4 and 6 Be3 e5.} 9. O-O {[%emt 0:00:19]} Nb4 {[%emt 0:02:21]} 10. Be3 {[%emt 0:07:58]} Rc8 {[%emt 0:07:24] Black has an edge.} 11. Bf3 {[%emt 0:11:00]} Be7 {[%emt 0:05:22]} 12. a5 {[%emt 0:23:51]} O-O {[%emt 0:07:18] [#]} 13. Ra4 $146 {[%emt 0:05:31]} (13. Re1 $11) ({Predecessor:} 13. Qd2 d5 14. exd5 Nfxd5 15. Nxd5 Nxd5 16. Bxd5 Qxd5 17. Rfc1 Qb5 18. Bg5 Rfd8 19. Qe3 {0-1 (51) Yadav,A (1114)-Lopez Godinez,O Tornelo INT 2021}) 13... d5 $15 {[%emt 0:02:23][%cal Bd6d5,Bd5d4][%mdl 32]} 14. Bc5 {[%emt 0:09:58]} Rxc5 $19 {[%emt 0:14:55]} ({Stronger than} 14... Bxc5 15. Nxc5 Rxc5 16. Rxb4 $17) 15. Rxb4 {[%emt 0:05:36] [#]} Rc7 {[%emt 0:00:33]} 16. Ra4 {[%emt 0:03:19][%cal Re4d5]} d4 {[%emt 0:01:16]} 17. Nb1 {[%emt 0:07:55]} Qd7 {[%emt 0:01:19]} 18. Ra1 {[%emt 0:00:57]} Rfc8 {[%emt 0:00:31]} 19. c3 {[%emt 0:01:46]} (19. Nc1 {only move.}) 19... Qb5 {[%emt 0:00:18]} 20. N1d2 {[%emt 0:01:03]} dxc3 {[%emt 0:00:32]} 21. bxc3 {[%emt 0:00:24]} Rxc3 {[%emt 0:00:15][%cal Re6b3]} 22. Rb1 {[%emt 0:07:53]} Qd7 {[%emt 0:02:30] [#] Prevents Nd4. aiming for ...Rd3.} 23. h3 {[%emt 0:02:09]} (23. Be2 {is a better defense.}) 23... Rd3 {[%emt 0:01:11] Black is clearly winning.} 24. Be2 {[%emt 0:06:06]} Bxb3 {[%emt 0:00:30]} 25. Nxb3 {[%emt 0:02:11]} Rxd1 {[%emt 0:00:10]} 26. Rfxd1 {[%emt 0:00:10]} Qa4 {[%emt 0:00:30]} 27. f3 {[%emt 0:00:30]} h6 {[%emt 0:00:30] Black took control after the opening.  Weighted Error Value: White=0.82/Black=0.02 (flawless)} 0-1

[Event "13th KIIT Festival-A 2022"]
[Site "Bhubaneswar"]
[Date "2022.05.23"]
[Round "2.13"]
[White "Aditya P Melani"]
[Black "Gusain, Himal"]
[Result "0-1"]
[ECO "A20"]
[WhiteElo "1855"]
[BlackElo "2396"]
[Annotator "TA"]
[PlyCount "56"]
[EventDate "2022.05.15"]
[EventType "swiss"]
[EventCountry "IND"]
[SourceTitle "playchess.com"]
[Source "ChessBase"]
[SourceQuality "1"]
[TimeControl "5400+30"]

{[%evp 9,56,1,-2,0,10,11,16,-2,12,-42,-33,-47,-40,-43,0,-81,-84,-93,-82,-85,-81,-80,-87,-90,-96,-105,-103,-110,-106,-95,-97,-113,-114,-122,-118,-118,-115,-243,-254,-240,-247,-246,-253,-292,-224,-393,-385,-486,-468]} 1. c4 {[%emt 0:00:03]} e5 {[%emt 0:05:42]} 2. g3 {[%emt 0:01:05]} c6 {[%emt 0:00:16]} 3. Nc3 {[%emt 0:01:34]} d5 {[%emt 0:00:27]} 4. d4 {[%emt 0:00:04]} e4 {[%emt 0:00:13]} 5. Bg2 {[%emt 0:00:26]} Bb4 {[%emt 0:00:24]} 6. Qb3 {[%emt 0:05:56] A20: English Opening: 1...e5.} Ba5 {[%emt 0:00:13]} 7. Nh3 {[%emt 0:14:58]} h6 {[%emt 0:00:09]} 8. O-O {[%emt 0:04:07][%cal Rc4d5] The position is equal.} Nf6 {[%emt 0:00:27] [#]} 9. Qa3 $146 {[%emt 0:03:34]} (9. cxd5 $11 cxd5 10. Nf4) ({Predecessor:} 9. cxd5 cxd5 10. Nf4 Bxc3 11. bxc3 O-O 12. f3 Nc6 13. fxe4 dxe4 14. e3 b6 15. Ba3 {½-½ (52) Movsesian,S (2688)-Grandelius,N (2572) Wijk aan Zee 2013}) 9... dxc4 $15 {[%emt 0:04:09]} 10. Bf4 {[%emt 0:12:57]} Na6 {[%emt 0:02:04][%cal Bb8a6,Ba6c7,Bc7e6,Be6d4,Bd4f5,Bf5g3][%mdl 32]} 11. Bd6 {[%emt 0:08:08] Inhibits Bb4.} Bc7 {[%emt 0:01:11]} 12. Bxc7 {[%emt 0:05:44]} (12. Be5 $1 $11 {remains equal.}) 12... Nxc7 $17 {[%emt 0:01:59]} 13. Qc5 {[%emt 0:07:30]} Ne6 $36 {[%emt 0:00:11][%mdl 2048] Black has strong initiative.} 14. Qxc4 {[%emt 0:03:01]} Qxd4 {[%emt 0:00:13]} 15. Qxd4 {[%emt 0:01:01]} Nxd4 {[%emt 0:00:06]} 16. Rfd1 {[%emt 0:03:17]} Nf5 {[%emt 0:00:09] Black is more active.} 17. Nxe4 {[%emt 0:04:53]} Nxe4 {[%emt 0:00:08]} 18. Bxe4 {[%emt 0:00:01] [#]} Nxg3 $1 {[%emt 0:00:24][%mdl 512]} 19. hxg3 {[%emt 0:00:05]} Bxh3 {[%emt 0:00:07]} 20. Rd3 {[%emt 0:01:10]} Be6 {[%emt 0:02:00]} 21. Rd4 {[%emt 0:03:00]} Ke7 {[%emt 0:02:07]} 22. Rb4 {[%emt 0:01:04]} Rab8 {[%emt 0:00:06]} 23. a4 {[%emt 0:00:56] [#] White does not recover from this.} (23. Kg2 $17 {was necessary.}) 23... c5 $1 $19 {[%emt 0:01:28][%cal Bc6c5,Bc5c4][%mdl 32]} 24. Rxb7+ {[%emt 0:03:46]} Rxb7 {[%emt 0:00:06]} 25. Bxb7 {[%emt 0:00:06]} Rb8 {[%emt 0:00:03]} 26. Ba6 {[%emt 0:01:41]} Rxb2 {[%emt 0:00:13] And now ...c4 would win.} 27. Kf1 $2 {[%emt 0:01:02]} (27. Bb5) 27... c4 {[%emt 0:00:26] White must now prevent ...Rb6.} 28. Rc1 {[%emt 0:00:57]} Rb6 {[%emt 0:00:12] Weighted Error Value: White=0.36/Black=0.07 (flawless)} 0-1